Cogmind - Beta 13 @@@ ROGUE MODE // 2024.04.03 @ 20:29:57 Player: bruderalex Result: Destroyed by OM-J5X(R) with Subdweller Machine Gun Performance ------------- Evolutions (0) 0 Regions Visited (3) 600 Robots Destroyed (32) 160 Value Destroyed (687) 687 Prototype IDs (0) 0 Alien Tech Used (0) 0 Bonus (0) 0 TOTAL SCORE: 1447 Bonus ------- None Cogmind --------- Core Integrity 0/250 Matter 300/300 Energy 100/100 System Corruption 0% Temperature Cool (0) Movement Core (1350) Ox26 Location -10/Subcaves Parts ------- > --- POWER (1) -------- (None) > --- PROPULSION (2) --- (None) > --- UTILITY (2) ------ Huge Storage Unit Signal Interpreter > --- WEAPON (2) ------- (None) > --- INVENTORY (25) --- Ion Engine Light Ion Engine Light Treads Heat Sink Heat Sink Small Storage Unit Seismic Detector Reactive Plating Scrap Shield Peak State ------------ > --- POWER ------------ Ion Engine > --- PROPULSION ------- Light Treads Light Treads > --- UTILITY ---------- Huge Storage Unit Signal Interpreter > --- WEAPON ----------- Small Laser Rocket Launcher > --- INVENTORY -------- Light Ion Engine Light Ion Engine Light Treads Light Treads Heat Sink Small Storage Unit Seismic Detector Reactive Plating Assault Rifle Light Assault Rifle [Rating: 9] Favorites ----------- Power Light Ion Engine Engine Light Ion Engine Propulsion Light Treads Treads Light Treads Utility Signal Interpreter Storage Huge Storage Unit Processor Signal Interpreter Weapon Assault Rifle Energy Gun Small Laser Ballistic Gun Assault Rifle Launcher Rocket Launcher Build | -11 -10 -10 -10 ------- Run | Yrd Mat Min Sub Slots Evolved . | . . . . Power . | . . . . Propulsion . | . . . . Utility . | . . . . Weapon . | . . . . Parts Attached 17 | 6 2 8 1 Power 3 | 1 . 2 . Engine 3 | 1 . 2 . Core . | . . . . Reactor . | . . . . Propulsion 4 | 2 . 2 . Treads 4 | 2 . 2 . Leg . | . . . . Wheel . | . . . . Hover . | . . . . Flight . | . . . . Utility 3 | 1 2 . . Device . | . . . . Storage 2 | 1 1 . . Processor 1 | . 1 . . Hackware . | . . . . Protection . | . . . . Artifact . | . . . . Weapon 7 | 2 . 4 1 Energy Gun 2 | 1 . 1 . Energy Cannon . | . . . . Ballistic Gun 4 | 1 . 2 1 Ballistic Cannon . | . . . . Launcher 1 | . . 1 . Special Weapon . | . . . . Impact Weapon . | . . . . Slashing Weapon . | . . . . Piercing Weapon . | . . . . Special Melee Weapon . | . . . . Unidentified Prototypes . | . . . . Parts Lost 11 | . . 5 6 Power 2 | . . 1 1 Propulsion 4 | . . 2 2 Utility . | . . . . Weapon 5 | . . 2 3 Highest Loss Streak 6 | . . 1 6 To Critical Strikes . | . . . . Average Slot Usage (%) 97 | . 99 98 91 Engine 13 | . 14 13 10 Treads 27 | . 28 27 26 Storage 14 | . 14 14 14 Processor 13 | . 13 14 14 Energy Gun 8 | . 14 7 . Ballistic Gun 15 | . 14 15 24 Launcher 3 | . . 3 . Naked Turns . | . . . . Heaviest Build 90 | 12 87 90 86 Greatest Support 40 | 40 40 40 40 Greatest Overweight (x) 4 | . 2 4 3 Average Overweight (x) 1 | . 1 2 2 Largest Inventory Capacity 25 | 8 25 25 25 Average Capacity 23 | 6 21 25 25 Most Carried 11 | 3 8 10 11 Average Carried 8 | 1 5 8 10 Final Capacity 25 | 8 25 25 25 Final Carried 10 | 3 7 9 10 Class Distribution -------------------- 100% | Mutant Dominant Class ---------------- Mutant | -10/Materials Mutant | -10/Mines Mutant | -10/Subcaves Resources | -11 -10 -10 -10 ----------- Run | Yrd Mat Min Sub Matter Collected 697 | 200 134 363 . Remotely . | . . . . Salvage Created 876 | . 216 660 . Parts 59 | . 12 47 . Haulers Intercepted . | . . . . Recyclers Shooed . | . . . . Parts Field Recycled . | . . . . Retrieved Matter . | . . . . Parts Self-Destructed 4 | . . . 4 Prevented . | . . . . Kills | -11 -10 -10 -10 ------- Run | Yrd Mat Min Sub Combat Hostiles Destroyed 24 | . 3 21 . Guns 17 | . 3 14 . AOE 7 | . . 7 . Classes Destroyed 8 | . 3 5 . Worker 1 | . . 1 . Builder 2 | . . 2 . Tunneler 2 | . . 2 . Recycler 3 | . 1 2 . Operator 1 | . 1 . . Swarmer 9 | . . 9 . Grunt 14 | . 3 11 . Assembled 1 | . . 1 . Best Kill Streak 4 | . 2 4 . Combat Bots Only 4 | . 2 4 . Max Kills in Single Turn 2 | . 1 2 . Gunslinging . | . . . . Exploded 1 | . . 1 . Melee . | . . . . Uniques/NPCs Destroyed . | . . . . Combat | -11 -10 -10 -10 -------- Run | Yrd Mat Min Sub Hostile Shots Fired 142 | . 21 104 17 Missed 46 | . 11 28 7 Damage Taken 1478 | . 140 955 383 Core 260 | . 27 151 82 Absorbed by Shields . | . . . . Core Remaining (%) 100 | 100 . . . Volleys Fired 85 | . 22 61 2 Largest 2 | . 2 2 2 Hottest 73 | . 70 73 40 Shots Fired 154 | . 44 107 3 Gun 138 | . 44 91 3 Cannon . | . . . . Launcher 16 | . . 16 . Special . | . . . . Kinetic 80 | . 22 55 3 Thermal 58 | . 22 36 . Explosive 16 | . . 16 . Electromagnetic . | . . . . Robot Hit Streak 10 | . 10 9 9 Robot Miss Streak 6 | . 3 6 . Penetration Max . | . . . . Secondary Targets 1 | . . 1 . Max Gunslinging Chain 1 | . . 1 . Shots Hit Robots 85 | . 28 54 3 Core Hits 48 | . 11 36 1 Critical Kills . | . . . . Critical Parts Destroyed . | . . . . Critical Strikes . | . . . . Melee Attacks . | . . . . Impact . | . . . . Slashing . | . . . . Piercing . | . . . . Sneak Attacks . | . . . . Combat Hostiles . | . . . . Follow-up Attacks . | . . . . Damage Inflicted 1728 | . 369 1327 32 Guns 992 | . 367 593 32 Cannons . | . . . . Explosions 660 | . . 660 . Melee . | . . . . Ramming 76 | . 2 74 . Kinetic 584 | . 191 361 32 Thermal 408 | . 176 232 . Explosive 660 | . . 660 . Electromagnetic . | . . . . Impact . | . . . . Slashing . | . . . . Piercing . | . . . . Highest Corruption . | . . . . Average Corruption . | . . . . Corruption Purged . | . . . . Corruption Blocked . | . . . . Overload Shots . | . . . . Overflow Damage 22 | . . 22 . Projectiles . | . . . . Explosions 22 | . . 22 . Melee . | . . . . Knockbacks . | . . . . Impact . | . . . . Kinetic . | . . . . Secondary . | . . . . Self-Inflicted Damage 164 | . . 164 . Shots 6 | . . 6 . Rammed 8 | . . 8 . Targets Rammed 11 | . 1 10 . Kicked . | . . . . Crushed 3 | . 1 2 . Highest Temperature 126 | . 126 90 . Average Temperature 34 | . 43 28 . Received Heat Transfer 375 | . 78 225 72 Siege Activations . | . . . . Robots Corrupted . | . . . . Combat Hostiles . | . . . . Parts Fried . | . . . . Impact Corruptions . | . . . . Robots Melted . | . . . . Combat Hostiles . | . . . . Parts Melted . | . . . . Heat Transferred 1090 | . 518 572 . Parts Sabotaged . | . . . . Parts Stolen . | . . . . Parts Stripped . | . . . . Power Chain Reactions . | . . . . Alert | -11 -10 -10 -10 ------- Run | Yrd Mat Min Sub Peak Influence 310 | . 120 310 . Initial . | . . . . Average 122 | . 40 144 . Maximum Alert Level 1 | . . 1 . Low Security (%) 75 | 100 100 69 . Level 1 24 | . . 30 . Level 2 . | . . . . Level 3 . | . . . . Level 4 . | . . . . Level 5 . | . . . . High Security . | . . . . Max Security . | . . . . Squads Dispatched 1 | . 1 . . Investigation . | . . . . Extermination . | . . . . Reinforcement 1 | . 1 . . Assault . | . . . . Garrison . | . . . . Intercept . | . . . . Searches Triggered . | . . . . Construction Impeded . | . . . . Haulers Reinforced . | . . . . Active Scanning Responses . | . . . . Cargo Convoy Interrupts . | . . . . Stealth | -11 -10 -10 -10 --------- Run | Yrd Mat Min Sub Distress Signals . | . . . . Communications Jammed . | . . . . Distress Signals . | . . . . Times Spotted 33 | . 6 20 7 Peak Tracking Total 7 | . 2 4 7 Tactical Retreats 3 | . 1 2 . Traps | -11 -10 -10 -10 ------- Run | Yrd Mat Min Sub Traps Triggered 3 | . . 2 1 Indirectly . | . . . . Trap Hack Attempts . | . . . . Triggered . | . . . . Disarmed . | . . . . Reprogrammed . | . . . . Reused . | . . . . Traps Extracted . | . . . . Installed . | . . . . Triggered 1 | . . 1 . Machines | -11 -10 -10 -10 ---------- Run | Yrd Mat Min Sub Machines Disabled 1 | . . 1 . Max in Single Turn 1 | . . 1 . Machines Repaired . | . . . . Machines Dismantled . | . . . . Machines Sabotaged . | . . . . Overloaded Fab Kills . | . . . . Hacking | -11 -10 -10 -10 --------- Run | Yrd Mat Min Sub Machines Accessed 2 | . 1 1 . Terminals 1 | . 1 . . Fabricators . | . . . . Repair Stations . | . . . . Recycling Units . | . . . . Scanalyzers . | . . . . Garrison Access . | . . . . Total Hacks 2 | . 1 1 . Successful 2 | . 1 1 . Failed . | . . . . Catastrophic . | . . . . Database Lockouts . | . . . . Manual . | . . . . Terminals 1 | . 1 . . Fabricators . | . . . . Repair Stations . | . . . . Recycling Units . | . . . . Scanalyzers . | . . . . Garrison Access . | . . . . Terminal Hacks 2 | . 1 1 . Open Door 1 | . . 1 . Dispatch Records 1 | . 1 . . Fabricator Hacks . | . . . . Repair Station Hacks . | . . . . Recycling Unit Hacks . | . . . . Scanalyzer . | . . . . Garrison Access Hacks . | . . . . Unauthorized Hacks . | . . . . Terminals . | . . . . Fabricators . | . . . . Repair Stations . | . . . . Recycling Units . | . . . . Scanalyzers . | . . . . Garrison Access . | . . . . Data Cores Recovered . | . . . . Used . | . . . . Hacking Detections 1 | . 1 . . Full Trace Events . | . . . . Feedback Events . | . . . . Feedback Blocked . | . . . . Robot Schematics Acquired . | . . . . Robots Built . | . . . . Authchips . | . . . . Time . | . . . . Total Robot Build Rating . | . . . . Part Schematics Acquired . | . . . . Parts Built . | . . . . Authchips . | . . . . Time . | . . . . Total Part Build Rating . | . . . . Parts Repaired . | . . . . Time . | . . . . Parts Recycled . | . . . . Recycled Matter . | . . . . Retrieved Matter . | . . . . Retrieved Components . | . . . . Parts Scanalyzed . | . . . . Part Schematics Acquired . | . . . . Parts Damaged . | . . . . Bothacking | -11 -10 -10 -10 ------------ Run | Yrd Mat Min Sub Used RIF Installer . | . . . . Robots Hacked . | . . . . Non-combat . | . . . . Combat . | . . . . Robot Hacks Applied . | . . . . Relay Couplers Released . | . . . . Fabnet Peak Effective % . | . . . . Robots Rewired . | . . . . Allies Hacked . | . . . . Hacks Repelled . | . . . . Allies | -11 -10 -10 -10 -------- Run | Yrd Mat Min Sub Total Allies . | . . . . Largest Group . | . . . . Highest-Rated Group . | . . . . Highest-Rated Ally . | . . . . Total Orders . | . . . . Ally Attacks . | . . . . Total Damage . | . . . . Kills . | . . . . Allies Corrupted . | . . . . Allies Melted . | . . . . Intel | -11 -10 -10 -10 ------- Run | Yrd Mat Min Sub Robot Analysis Total . | . . . . Derelict Logs Recovered 1 | . . 1 . Drone Launches . | . . . . Drone Recoveries . | . . . . Exploration | -11 -10 -10 -10 ------------- Run | Yrd Mat Min Sub Turns Passed 3708 | 124 583 2815 186 Spaces Moved 1055 | 73 182 745 55 Core 5 | 5 . . . Treads 1050 | 68 182 745 55 Legs . | . . . . Wheels . | . . . . Hover . | . . . . Flight . | . . . . Fastest Speed 50 | 50 160 320 320 Average Speed 304 | 152 278 323 328 Slowest Speed 480 | 160 320 480 400 Overloaded Moves . | . . . . Propulsion Burnouts . | . . . . Robots Hopped . | . . . . Cave-ins Triggered . | . . . . Exploration Rate (%) 36 | 6 37 96 7 Regions Visited 3 Branch Regions 2 Pre-discovered Areas . | . . . . Known Exits Taken 2 | . 1 1 . Unknown Exits Taken 1 | 1 . . . Scrap Searched 1 | . . 1 . Spaces Dug 11 | . . 11 . Terrain Destroyed 128 | . . 128 . Melee . | . . . . Projectile . | . . . . AOE 128 | . . 128 . Terrain Rammed . | . . . . Walls Destroyed . | . . . . Machines Disabled . | . . . . Actions | -11 -10 -10 -10 --------- Run | Yrd Mat Min Sub Total 1382 | 84 215 1024 59 Wait 186 | . . 186 . Move 1052 | 72 181 744 55 Hop . | . . . . Pick Up 23 | 6 6 10 1 Fast Attach 4 | 3 1 . . Attach 9 | 3 . 5 1 Detach . | . . . . Swap 4 | . 1 3 . Drop 6 | . 3 3 . Fire 85 | . 22 61 2 Melee . | . . . . Ram . | . . . . Kick . | . . . . Crush 11 | . 1 10 . Escape Stasis . | . . . . Rewire 2 | . . 2 . Trap . | . . . . Miscellaneous . | . . . . Route ------- -11/Scrapyard -10/Materials -10/Mines (discovered 3 exits: *Mat x2 / *Sub) -10/Subcaves History --------- Turn | Location | Event 64 | -11/Scrapyard | Discovered new exit (range 16) 125 | -11/Scrapyard | Entered Materials 307 | -10/Materials | Build established: Mutant 644 | -10/Materials | Discovered new exit (range 16) 695 | -10/Materials | Identified exit to Mines 708 | -10/Materials | Entered Mines 918 | -10/Mines | Learned Materials interactive machine intel 951 | -10/Mines | Met a Derelict who couldn't figure out how to use a Trap Extractor 1087 | -10/Mines | Discovered new exit (range 6) 1103 | -10/Mines | Identified exit to Materials 1400 | -10/Mines | Received a Rocket Launcher from a helpful Derelict 1940 | -10/Mines | Excavation squad dispatched 1940 | -10/Mines | A large section of the Mines collapsed 2190 | -10/Mines | Excavation squad dispatched 2234 | -10/Mines | Core integrity fell below 50% 2861 | -10/Mines | Discovered exit to Materials (range 7) 3392 | -10/Mines | Discovered new exit (range 12) 3517 | -10/Mines | Identified exit to Subcaves 3523 | -10/Mines | Entered Subcaves 3678 | -10/Subcaves | Ambushed by swarm of Subdwellers 3689 | -10/Subcaves | Core integrity fell below 20% 3709 | -10/Subcaves | Destroyed by OM-J5X(R) with Subdweller Machine Gun Last Messages --------------- 03680_ YG-EMJ(u) builds Twisted Machinery. 03681_ XF-O9U(R) emerges from the Twisted Machinery. 03682_ Assault Rifle destroyed. 03684_ PB-7XZ(g): "Sorry we're late! Had another grouchy Sub to deal with. Who's the new fellow?" 03684_ YG-EMJ(u) builds Twisted Machinery. 03686_ Lgt. Assault Rifle destroyed. 03688_ Lgt. Treads destroyed. 03688_ Assault Rifle destroyed. 03688_ YG-EMJ(u) builds Twisted Machinery. 03692_ Subatomizers dissect the Myomer Leg. 03699_ 6C-H7O(g) destroyed. 03702_ YG-EMJ(u) builds Twisted Machinery. 03703_ Subatomizers dissect the Myomer Leg. 03703_ DC-KY2(R) destroyed. 03704_ YG-EMJ(u) builds Twisted Machinery. 03704_ KC-QP6(g) destroyed. 03705_ PB-7XZ(g) destroyed. 03706_ YG-EMJ(u) builds Twisted Machinery. 03709_ Lgt. Treads destroyed. Map ----- +----------------------------------------------------+ | ?????????????????????????????????????????????????? | | ?????????????????????????????????????????????????? | | ?????????????????????????????????????????????????? | | ?????????????????????????????????????????????????? | | ?????????????????????????????????????????????????? | | ?????????????????????????????????????????????????? | | ?????????????????????????????????????????????????? | | ?????????????????????????????????????????????????? | | ?????????????????????????????????????????????????? | | ?????????????????????????????#???????????????????? | | ???????????????????????????##"???????????????????? | | ?????????????????????????###""???????????????????? | | ????????????????????????? ???????????????????? | | ????????????????????????? ???????????????????? | | ?????????????????????????? #???????????????????? | | ???????????????????#?????? ""##??????????????????? | | ???????????????????# ###??#"u #??????????????????? | | ??????????????????? #?# [ #??????????????????? | | ???????????????????? "## ##?????????????????? | | ?????????????????????# "" *!;#?????????????????? | | ?????????????????????#"""""!!%##?????????????????? | | ?????????????????????# "" %R*R!##????????????????? | | ?????????????????????## RRR% #????????????????? | | ??????????????????????### *%= #????????????????? | | ???????????????????????## ! #????????????????? | | ???????????????????????# @ # ##??????????? | | ???????????????????????# ## #??????????? | | ??????????????????###??##;; ;; ##??????????? | | ??????????????????# ####; ;### #???????????? | | ??????????????# ## ;#?? ##???? ??????? | | ??????????????# ;;;#???##???? ??????? | | ??????????????# ^### ; #???????# ??????? | | ??????????????## ?????## ####????### ???????? | | ???????????????????????# #??????# ????????? | | ???????????????????????## ##??### ?????????? | | ?????????????????????#### #??# %???????????? | | ?????????????????????# ##?# ????????????? | | ?????????????????????# ### #?????????????? | | ?????????????????????# ## #?????????????? | | ?????????????????????# ###???????????? | | ????????????????????# ####????????? | | ????????????????????# ## ^ ## ## ##???????? | | ????????????????????# #?# ##### ##??????? | | ????????????????????# ??# ##???# #?##???? | | ??????????????????? ## #????## ## ##??? | | ?????????????????? ####??#### ###? | | ????????????????? ###?## #?????# #? | | ????????????????# ?????## ###??## #? | | ????????????????##???????## #### ^ ^##? | | ??????????????????????????# # ######?? | +----------------------------------------------------+ Best States ------------- Heat Dissipation 25 Energy Generation 10 Energy Capacity 250 Matter Stores 300 Matter Capacity 300 Sight Range 16 Terrain Scan Density 10 Evasion (%) 40 Recoil Reduction 2 Item Schematics ----------------- None Robot Schematics ------------------ None Fabricated ------------ Nothing Alien Tech Used ----------------- None Achievements -------------- None Challenges ------------ None Game ------ Seed TachyonSkeletonSpear Manual? 0 Play Time 00:14:52 Cumulative 6.0 hours Start 2024.04.03 @ 20:08:38 End 2024.04.03 @ 20:29:57 Sessions 1 Manual Loads 0 Difficulty Rogue Special Mode None Game No. 11 Rogue 5 Adventurer 6 Explorer 0 Win Type - Total 0 Types 0/0/0/0/0/0/0/0/0 Lore% 10 Gallery% 12 Achievement% 12 Wizard Run 0 Options --------- Layout 0 ASCII 0 Keyboard 1 Movement Numpad Keybinds 0 Fullscreen 1 Font 18/SmallcapsGlow Map View 76x50 Zoom Use 0% Tactical HUD 1 Map Filters NONE Filters NONE Steam 1 RUN: 7775e0db-5559-4ffd-847c-79ecd6de1218